Cogmind - Beta 17 @@@ ROGUE MODE // 2026.07.01 @ 20:27:37 Player: Venar246 Result: Destroyed by P-70 Sage with High-powered Shock Rifle Performance ------------- Evolutions (5) 2500 Regions Visited (11) 2200 Robots Destroyed (116) 580 Value Destroyed (4416) 4416 Prototype IDs (14) 280 Alien Tech Used (0) 0 Bonus (130) 130 TOTAL SCORE: 10106 Bonus ------- High Alert Combat Kills 84 Follower Combat Kills 342 Friendly Fire -296 Cogmind --------- Core Integrity 0/1000 Matter 300/300 Energy 99/100 System Corruption 11% Temperature Cool (0) Movement Core (50) Location -5/Factory Parts ------- > --- POWER (2) -------- (None) > --- PROPULSION (4) --- (None) > --- UTILITY (7) ------ (None) > --- WEAPON (4) ------- (None) > --- INVENTORY (5) ---- Light Nuclear Core VTOL Module Improved Launcher Guidance Computer Wave Gun Quantum Rifle Peak State ------------ > --- POWER ------------ Neutrino Core Micro Fission Core > --- PROPULSION ------- Improved Treads Flexi-carbon Leg Enhanced Flexi-carbon Leg Enhanced Armored Leg > --- UTILITY ---------- Advanced Cooling System Large Storage Unit Compact Matter Pod IFF Parser Advanced Terrain Scanner Improved Medium Armor Plating Improved Medium Armor Plating > --- WEAPON ----------- Phase Cannon Heavy Machine Gun KE Penetrator Axe > --- INVENTORY -------- Light Nuclear Core Light Nuclear Core VTOL Module Advanced Heat Sink IFF Parser Improved Launcher Guidance Computer Improved Target Analyzer Improved Focal Shield Tesla Rifle Tesla Rifle Wave Gun Wave Gun Quantum Rifle KE Penetrator [Rating: 87] Favorites ----------- Power Light Deuterium Engine Engine Light Deuterium Engine Power Core Micro Fission Core Reactor Antimatter Reactor Propulsion Armored Huge Wheel Treads Light Treads Leg Aluminum Leg Wheel Armored Huge Wheel Hover Unit Hover Unit Utility Large Storage Unit Device Seismic Detector Storage Large Storage Unit Processor Targeting Computer Hackware Advanced Hacking Suite Protection Improved Medium Armor Plating Weapon Cooled Particle Cannon Energy Gun Force Rifle Energy Cannon Cooled Particle Cannon Ballistic Gun Light Assault Rifle Ballistic Cannon Advanced Assault Cannon Launcher Grenade Launcher Slashing Weapon Axe Build | -11 -10 -9 -9 -8 -7 -7 -7 -6 -5 -5 -5 ------- Run | Yrd Mat Mat Min Mat Fac Was Fac Fac Fac Was Fac Slots Evolved 10 | . . 2 . 2 2 . . 2 2 . . Power 1 | . . . . . 1 . . . . . . Propulsion 2 | . . 1 . 1 . . . . . . . Utility 5 | . . 1 . 1 1 . . 1 1 . . Weapon 2 | . . . . . . . . 1 1 . . Parts Attached 126 | 6 1 12 6 15 4 1 11 17 19 7 27 Power 20 | 1 . 3 . 2 2 1 1 1 3 1 5 Engine 9 | 1 . 2 . 2 2 . 1 1 . . . Core 10 | . . 1 . . . . . . 3 1 5 Reactor 1 | . . . . . . 1 . . . . . Propulsion 22 | 2 . 3 3 2 . . 2 1 1 2 6 Treads 6 | . . 3 1 . . . . . . . 2 Leg 9 | 2 . . 1 . . . . . . 2 4 Wheel 6 | . . . . 2 . . 2 1 1 . . Hover 1 | . . . 1 . . . . . . . . Flight . | . . . . . . . . . . . . Utility 49 | 1 1 2 2 3 2 . 4 10 12 1 11 Device 31 | . 1 1 1 2 1 . 2 8 8 1 6 Storage 4 | 1 . 1 . . . . . . . . 2 Processor 2 | . . . . . . . . . 1 . 1 Hackware 2 | . . . . . . . 1 . 1 . . Protection 10 | . . . 1 1 1 . 1 2 2 . 2 Artifact . | . . . . . . . . . . . . Weapon 35 | 2 . 4 1 8 . . 4 5 3 3 5 Energy Gun 9 | . . 1 . 3 . . . . 2 1 2 Energy Cannon 9 | . . . . 4 . . 1 3 . . 1 Ballistic Gun 8 | 2 . 2 1 . . . . 1 . . 2 Ballistic Cannon 1 | . . . . . . . 1 . . . . Launcher 7 | . . 1 . 1 . . 1 1 1 2 . Special Weapon . | . . . . . . . . . . . . Impact Weapon . | . . . . . . . . . . . . Slashing Weapon 1 | . . . . . . . 1 . . . . Piercing Weapon . | . . . . . . . . . . . . Special Melee Weapon . | . . . . . . . . . . . . Unidentified Prototypes 8 | . . . . 3 1 . . 1 2 . 1 Corrupted Parts 1 | . . . . . . . . . . . 1 System Corruption 5 | . . . . . . . . . . . 5 Parts Lost 47 | . . 3 8 2 . . 4 3 6 6 15 Power 6 | . . 1 1 2 . . . . . . 2 Propulsion 9 | . . 1 3 . . . . . 1 2 2 Utility 21 | . . . 2 . . . 3 3 5 2 6 Weapon 11 | . . 1 2 . . . 1 . . 2 5 Highest Loss Streak 7 | . . 2 7 1 . . 3 1 2 4 7 To Critical Strikes 3 | . . . . . . . . . . 2 1 Average Backups 10 | 1 4 8 8 11 12 12 12 12 14 13 8 Power . | . 1 . . . . 1 1 1 1 . . Propulsion 1 | . . . . 1 2 2 1 1 3 4 1 Utility 4 | . 1 6 7 4 5 5 4 4 3 4 2 Weapon 3 | . 1 1 . 4 5 4 4 4 5 4 3 Tool/Special . | . . . . . . . . . . . . Unused Backups 34 | . . . . 7 3 . 1 5 3 1 14 Power 1 | . . . . . . . . 1 . . . Propulsion 5 | . . . . . . . . 1 . 1 3 Utility 16 | . . . . 5 3 . 1 2 1 . 4 Weapon 12 | . . . . 2 . . . 1 2 . 7 Tool/Special . | . . . . . . . . . . . . Average Slot Usage (%) 83 | . 97 93 90 80 81 83 83 85 84 50 78 Engine 7 | . 14 9 6 8 12 8 8 13 3 . . Core 2 | . . 1 1 . . . . . 6 6 5 Reactor 1 | . . . . . . 5 5 . . . . Treads 3 | . . 17 10 . . . . . . . 3 Leg 4 | . 28 9 10 . . . . . . 1 8 Wheel 8 | . . . . 16 15 15 14 13 10 7 1 Device 20 | . 11 22 12 18 22 23 18 21 23 15 22 Storage 7 | . 14 11 11 8 7 7 7 6 5 5 7 Hackware 1 | . . . . . . . 3 3 2 . . Protection 5 | . . . 9 9 7 7 6 6 4 . 6 Energy Gun 2 | . . 7 1 . . . . . 8 3 3 Energy Cannon 7 | . . . . 15 15 13 11 10 7 1 4 Ballistic Gun 4 | . 28 14 11 . . . . . . . 5 Slashing Weapon 2 | . . . . . . . 2 3 4 3 4 Peak Build Rating 87 | 6 7 12 14 42 52 56 59 66 83 73 87 Average Rating 48 | 4 6 10 13 36 49 54 54 60 76 48 70 On Entrance 33 | . 6 7 12 14 42 52 56 48 58 66 38 Avg Prop Armor Cover (%) 6 | . . 6 7 8 . . . . . 9 4 Naked Turns 3 | . . . . . . . . . . . 3 Heaviest Build 79 | 13 14 31 33 45 62 73 73 71 75 65 79 Greatest Support 90 | 20 20 60 60 56 56 56 56 56 65 56 90 Greatest Overweight (x) 11 | . . 3 2 11 1 1 1 1 2 2 3 Average Overweight (x) . | . . . 1 . . . . 1 . . . Largest Inventory Capacity 15 | 8 8 15 15 15 15 15 15 15 15 15 15 Average Capacity 14 | 6 8 13 15 14 15 15 15 15 15 15 13 Most Carried 15 | 2 8 12 12 15 15 15 15 15 15 15 15 Average Carried 12 | 1 4 8 8 13 14 14 13 13 14 13 9 Final Capacity 15 | 8 8 15 15 15 15 15 15 15 15 15 5 Final Carried 15 | 2 8 12 9 14 15 15 11 13 15 15 5 Class Distribution -------------------- 60% | Mutant 12% | Scavenger-Mutant 11% | Scavenger-Tank 7% | Tank Dominant Class ---------------- Mutant | -10/Materials Mutant | -9/Materials Mutant | -9/Mines Mutant | -8/Materials Mutant | -7/Factory Mutant | -7/Waste Mutant | -7/Factory Scavenger-Mutant | -6/Factory Scavenger-Tank | -5/Factory Mutant | -5/Waste Scavenger-Tank | -5/Factory Resources | -11 -10 -9 -9 -8 -7 -7 -7 -6 -5 -5 -5 ----------- Run | Yrd Mat Mat Min Mat Fac Was Fac Fac Fac Was Fac Matter Collected 3095 | 190 . 494 117 437 30 51 362 424 456 . 534 Remotely . | . . . . . . . . . . . . Salvage Created 5000 | . 37 848 83 625 23 . 1088 787 953 . 556 Parts 253 | . 3 54 4 31 2 . 39 45 44 . 31 Haulers Intercepted 3 | . . . . 1 . . 1 . 1 . . Recyclers Shooed 5 | . . . . 1 . . 1 2 1 . . Parts Field Recycled . | . . . . . . . . . . . . Retrieved Matter . | . . . . . . . . . . . . Parts Self-Destructed . | . . . . . . . . . . . . Prevented . | . . . . . . . . . . . . Parts Restored . | . . . . . . . . . . . . Kills | -11 -10 -9 -9 -8 -7 -7 -7 -6 -5 -5 -5 ------- Run | Yrd Mat Mat Min Mat Fac Was Fac Fac Fac Was Fac Combat Hostiles Destroyed 98 | . 1 21 8 11 . . 23 13 11 . 10 Melee 6 | . . . . . . . 3 . . . 3 Guns 27 | . 1 19 1 . . . . . 4 . 2 Cannons 41 | . . . . 7 . . 16 11 6 . 1 AOE 23 | . . 2 7 3 . . 4 2 1 . 4 Classes Destroyed 15 | . 1 4 1 2 . . 5 1 1 . . Worker 3 | . . 1 . . . . 1 1 . . . Builder 5 | . . . . . . . 1 2 1 . 1 Hauler 3 | . . . . 1 . . 1 . 1 . . Recycler 5 | . . 3 . 1 . . . 1 . . . Operator 5 | . . . . 1 1 . . 2 1 . . Watcher 1 | . . . . . . . . . 1 . . Swarmer 23 | . . 11 . 2 . . 3 3 . . 4 Grunt 32 | . 1 4 3 7 . . 9 4 4 . . Brawler 3 | . . . . . . . 3 . . . . Duelist 3 | . . . . . . . 3 . . . . Sentry 21 | . . 6 . 2 . . 4 3 2 . 4 Hunter 6 | . . . . . . . . 1 5 . . Programmer 5 | . . . . . . . 1 2 . . 2 Assembled 5 | . . . 5 . . . . . . . . Surgeon 1 | . . . . . . . 1 . . . . Best Kill Streak 12 | . 1 12 5 4 1 . 5 4 3 . 6 Combat Bots Only 9 | . 1 9 5 4 . . 4 3 2 . 6 Max Kills in Single Turn 3 | . 1 2 2 2 1 . 2 2 1 . 3 Gunslinging . | . . . . . . . . . . . . Exploded 3 | . . 1 2 2 . . 2 2 1 . 3 Melee 1 | . . . . . . . 1 . . . 1 Uniques/NPCs Destroyed . | . . . . . . . . . . . . Combat | -11 -10 -9 -9 -8 -7 -7 -7 -6 -5 -5 -5 -------- Run | Yrd Mat Mat Min Mat Fac Was Fac Fac Fac Was Fac Hostile Shots Fired 878 | . 4 118 26 54 . . 241 116 80 8 231 Missed 226 | . 2 25 2 17 . . 63 35 24 1 57 Hits 652 | . 2 93 24 37 . . 178 81 56 7 174 Melee 36 | . . . 10 . . . 18 1 . 7 . Projectile 616 | . 2 93 14 37 . . 160 80 56 . 174 AOE 1 | . . 1 . . . . . . . . . Critical Strikes 30 | . . 2 . 3 . . 6 2 4 5 8 Part Disruptions 2 | . . . 1 . . . . . . . 1 Damage Taken 10974 | . 22 1119 598 637 . 33 2401 1226 1113 285 3540 Core 1840 | . . 214 128 68 . . 295 128 72 62 873 Absorbed by Shields 52 | . . . . . . . . . 28 24 . Ignored by Resistances 74 | . . . . . . . . . 74 . . Regen/Repaired (Parts) 739 | . . . . 36 . 57 646 . . . . Core Remaining (%) 73 | 100 100 . 14 87 . . 57 84 . . . Volleys Fired 302 | . 2 65 16 35 6 1 75 38 33 3 28 Largest 4 | . 2 2 2 2 2 1 2 3 4 1 3 Hottest 335 | . 40 73 73 130 60 33 90 215 335 40 196 Shots Fired 617 | . 4 126 30 58 12 1 136 91 88 3 68 Gun 243 | . 4 124 23 . . . . . 47 . 45 Cannon 347 | . . . . 56 12 . 127 90 41 . 21 Launcher 27 | . . 2 7 2 . 1 9 1 . 3 2 Special . | . . . . . . . . . . . . Kinetic 187 | . 4 88 16 . . . 22 15 6 . 36 Thermal 403 | . . 36 7 56 12 . 105 75 82 . 30 Explosive 22 | . . 2 7 2 . 1 9 1 . . . Electromagnetic 5 | . . . . . . . . . . 3 2 Robot Hit Streak 15 | . 2 10 1 15 2 . 12 8 10 11 5 Robot Miss Streak 7 | . 1 3 5 7 2 . 6 3 4 . 7 Penetration Max 1 | . . . . . . . . . . . 1 Secondary Targets 3 | . . 3 . . . . . . . . . Max Gunslinging Chain 1 | . . 1 . . . . . . . . . Shots Hit Robots 384 | . 2 82 9 36 2 . 100 51 50 1 51 Core Hits 219 | . 1 47 13 20 2 . 56 28 28 1 23 Critical Kills 2 | . . . . 1 . . . 1 . . . Critical Parts Destroyed 1 | . . . . . . . . . . . 1 Critical Strikes 15 | . . 3 . 1 . . 3 2 . . 6 Burn 4 | . . 3 . . . . . . . . 1 Meltdown 2 | . . . . 1 . . . 1 . . . Destroy 1 | . . . . . . . . . . . 1 Blast 2 | . . . . . . . 1 1 . . . Sever 6 | . . . . . . . 2 . . . 4 Melee Attacks 110 | . . . . . . . 29 22 17 . 42 Impact . | . . . . . . . . . . . . Slashing 110 | . . . . . . . 29 22 17 . 42 Piercing . | . . . . . . . . . . . . Sneak Attacks 2 | . . . . . . . . 1 1 . . Combat Hostiles . | . . . . . . . . . . . . Follow-up Attacks . | . . . . . . . . . . . . Damage Inflicted 12267 | . 23 1100 630 1204 55 . 3929 2066 1525 10 1725 Guns 2252 | . 23 903 94 . . . . . 668 . 564 Cannons 6141 | . . . . 917 55 . 2444 1740 683 . 302 Explosions 2555 | . . 184 536 281 . . 1105 221 82 10 136 Melee 1294 | . . . . . . . 380 105 92 . 717 Ramming 25 | . . 13 . 6 . . . . . . 6 Kinetic 1843 | . 23 655 68 . . . 352 261 28 . 456 Thermal 6859 | . . 248 26 917 55 . 2319 1479 1405 . 410 Explosive 2100 | . . 184 536 281 . . 878 221 . . . Electromagnetic 146 | . . . . . . . . . . 10 136 Impact . | . . . . . . . . . . . . Slashing 1294 | . . . . . . . 380 105 92 . 717 Piercing . | . . . . . . . . . . . . Highest Corruption 11 | . . . . . . . . . . . 11 Average Corruption 7 | . . . . . . . . . . . 7 Corruption Purged . | . . . . . . . . . . . . Corruption Blocked . | . . . . . . . . . . . . Effects 22 | . . . . . . . . . . . 22 Message Errors 3 | . . . . . . . . . . . 3 Matter Fused 10 | . . . . . . . . . . . 10 Heat Flow Errors 1 | . . . . . . . . . . . 1 Energy Discharges 3 | . . . . . . . . . . . 3 Parts Rejected 1 | . . . . . . . . . . . 1 Data Loss (minor) 2 | . . . . . . . . . . . 2 Data Loss (major) 2 | . . . . . . . . . . . 2 Overload Shots 2 | . . . . . . . 2 . . . . Overflow Damage 310 | . . . 8 47 . . 65 129 22 . 39 Projectiles 110 | . . . . 10 . . 34 64 . . 2 Explosions 178 | . . . 8 37 . . 31 65 . . 37 Melee 22 | . . . . . . . . . 22 . . Knockbacks 9 | . . 1 . . . . 6 2 . . . Impact 1 | . . 1 . . . . . . . . . Kinetic 6 | . . . . . . . 4 2 . . . Secondary 2 | . . . . . . . 2 . . . . Self-Inflicted Damage 424 | . . . 113 40 . 33 70 119 . . 49 Shots 13 | . . . 3 2 . 1 3 2 . . 2 Rammed 4 | . . 1 . 1 . . . . . . 2 Targets Rammed 5 | . . 2 . 1 . . . . . . 2 Kicked 1 | . . 1 . . . . . . . . . Crushed . | . . . . . . . . . . . . Highest Temperature 398 | . 6 215 45 63 12 . 378 216 398 . 284 Average Temperature 78 | . 6 56 21 21 8 . 86 41 153 . 88 Received Heat Transfer 2125 | . 12 327 142 369 . . 612 273 147 . 243 Effects 4 | . . . . . . . 1 . 3 . . Shutdowns 2 | . . . . . . . 1 . 1 . . Energy Bleed 2 | . . . . . . . . . 2 . . Siege Activations . | . . . . . . . . . . . . Martial Activations . | . . . . . . . . . . . . Shielding Activations . | . . . . . . . . . . . . Robots Disrupted . | . . . . . . . . . . . . Combat Hostiles . | . . . . . . . . . . . . Robots Corrupted . | . . . . . . . . . . . . Combat Hostiles . | . . . . . . . . . . . . Parts Fried 2 | . . . . . . . . . . . 2 Impact Corruptions . | . . . . . . . . . . . . Robots Melted 2 | . . . . 1 . . . 1 . . . Combat Hostiles 1 | . . . . 1 . . . . . . . Parts Melted 27 | . . 1 . 2 . . 6 3 14 . 1 Heat Transferred 9543 | . . 962 74 1258 74 . 2907 1850 1863 . 555 Parts Sabotaged . | . . . . . . . . . . . . Parts Stolen . | . . . . . . . . . . . . Parts Stripped . | . . . . . . . . . . . . Power Chain Reactions . | . . . . . . . . . . . . Alert | -11 -10 -9 -9 -8 -7 -7 -7 -6 -5 -5 -5 ------- Run | Yrd Mat Mat Min Mat Fac Was Fac Fac Fac Was Fac Maximum Alert Level 2 | . . . . . . . 2 1 . . . Low Security (%) 84 | 100 100 100 100 100 100 100 9 86 100 100 100 Level 1 13 | . . . . . . . 72 13 . . . Level 2 2 | . . . . . . . 17 . . . . Level 3 . | . . . . . . . . . . . . Level 4 . | . . . . . . . . . . . . Level 5 . | . . . . . . . . . . . . High Security . | . . . . . . . . . . . . Max Security . | . . . . . . . . . . . . Peak Influence 476 | . 20 195 93 144 57 16 476 254 169 52 105 Initial 231 | . . . 23 . 57 . . 231 109 52 . Average 97 | . 3 65 9 24 11 2 326 116 114 11 20 Influence Increases 3471 | . 41 554 92 344 6 49 1014 518 517 . 336 Destroy 0b10 Robot/C 1960 | . 20 420 60 220 . . 560 260 220 . 200 Destroy 0b10 Robot/NC 110 | . . 20 . 15 5 . 15 30 20 . 5 Destroy Leader 488 | . 10 100 10 52 . . 112 90 54 . 60 Allied During Kill 38 | . . . . . . . 38 . . . . Successful Hack 70 | . 11 4 . 25 . . 9 5 16 . . Disable Machine 180 | . . . . . . . 30 45 90 . 15 Anti-Garrison Action 150 | . . . . . . . 150 . . . . Destroy Structure 430 | . . 10 22 32 1 49 85 73 102 . 56 Lose Combat Pursuer 45 | . . . . . . . 15 15 15 . . Influence Decreases 3471 | . 41 494 152 217 133 49 542 765 592 150 336 Entered New Map 562 | . . . 37 . 70 . . 241 116 98 . Time Decay 2359 | . 41 340 41 202 63 36 432 494 416 40 254 Lost Part 343 | . . 30 74 15 . . 40 30 60 12 82 Lost Ally 83 | . . . . . . 13 70 . . . . Purge Threat 124 | . . 124 . . . . . . . . . Squads Dispatched 25 | . 1 1 . 2 1 . 6 4 3 . 7 Investigation 2 | . . 1 . . . . 1 . . . . Extermination 8 | . . . . . 1 . 1 2 2 . 2 Reinforcement 7 | . 1 . . 1 . . 1 2 1 . 1 Assault 2 | . . . . . . . 2 . . . . Garrison 6 | . . . . 1 . . 1 . . . 4 Intercept . | . . . . . . . . . . . . Searches Triggered . | . . . . . . . . . . . . Construction Impeded 2 | . . . . . . . 1 . . . 1 Haulers Reinforced . | . . . . . . . . . . . . Active Scanning Responses . | . . . . . . . . . . . . Cargo Convoy Interrupts . | . . . . . . . . . . . . Stealth | -11 -10 -9 -9 -8 -7 -7 -7 -6 -5 -5 -5 --------- Run | Yrd Mat Mat Min Mat Fac Was Fac Fac Fac Was Fac Distress Signals 9 | . . 6 . 2 . . . . . . 1 Communications Jammed 15 | . . . . . . . . 13 2 . . Distress Signals 14 | . . . . . . . . 12 2 . . Times Spotted 174 | . 6 38 11 18 3 . 34 22 16 6 20 Peak Tracking Total 9 | . 4 9 5 5 1 . 6 3 2 6 8 Tactical Retreats 11 | . . 6 1 . . . 1 1 1 1 . ECM-based Alert Blocks 12 | . . 12 . . . . . . . . . Traps | -11 -10 -9 -9 -8 -7 -7 -7 -6 -5 -5 -5 ------- Run | Yrd Mat Mat Min Mat Fac Was Fac Fac Fac Was Fac Traps Triggered 8 | . . 1 . 1 1 . 2 1 2 . . Indirectly . | . . . . . . . . . . . . Trap Hack Attempts . | . . . . . . . . . . . . Triggered . | . . . . . . . . . . . . Disarmed . | . . . . . . . . . . . . Reprogrammed . | . . . . . . . . . . . . Reused . | . . . . . . . . . . . . Traps Extracted . | . . . . . . . . . . . . Installed . | . . . . . . . . . . . . Triggered . | . . . . . . . . . . . . Machines | -11 -10 -9 -9 -8 -7 -7 -7 -6 -5 -5 -5 ---------- Run | Yrd Mat Mat Min Mat Fac Was Fac Fac Fac Was Fac Machines Disabled 13 | . . . . . . . 3 3 6 . 1 Max in Single Turn 3 | . . . . . . . 2 1 3 . 1 Garrison Access 4 | . . . . . . . 1 2 . . 1 Machines Repaired . | . . . . . . . . . . . . Machines Dismantled . | . . . . . . . . . . . . Machines Sabotaged . | . . . . . . . . . . . . Overloaded Fab Kills . | . . . . . . . . . . . . Hacking | -11 -10 -9 -9 -8 -7 -7 -7 -6 -5 -5 -5 --------- Run | Yrd Mat Mat Min Mat Fac Was Fac Fac Fac Was Fac Machines Accessed 36 | . 2 5 . 7 1 . 7 9 4 . 1 Terminals 19 | . 1 4 . 6 1 . 4 1 2 . . Fabricators 1 | . . . . . . . . 1 . . . Repair Stations 2 | . . . . 1 . . 1 . . . . Recycling Units 5 | . 1 . . . . . 1 3 . . . Scanalyzers 3 | . . 1 . . . . . 1 1 . . Garrison Access 6 | . . . . . . . 1 3 1 . 1 Total Hacks 86 | . 6 15 . 18 2 . 17 14 13 . 1 Successful 45 | . 2 6 . 10 . . 10 8 8 . 1 Failed 41 | . 4 9 . 8 2 . 7 6 5 . . Catastrophic 8 | . . 2 . . . . 2 2 2 . . Database Lockouts . | . . . . . . . . . . . . Manual 8 | . . . . 5 2 . 1 . . . . Terminals 46 | . 3 12 . 15 2 . 7 3 4 . . Fabricators 1 | . . . . . . . . 1 . . . Repair Stations 9 | . . . . 3 . . 6 . . . . Recycling Units 9 | . 3 . . . . . 1 5 . . . Scanalyzers 10 | . . 3 . . . . . 1 6 . . Garrison Access 11 | . . . . . . . 3 4 3 . 1 Terminal Hacks 24 | . 2 5 . 8 . . 4 3 2 . . Record 1 | . . . . . . . 1 . . . . Robot Analysis 1 | . . . . 1 . . . . . . . Prototype ID Bank 3 | . . . . 3 . . . . . . . Alert Level 4 | . . 1 . 1 . . . 1 1 . . Unreport Threat 1 | . . 1 . . . . . . . . . Locate Traps 2 | . 1 1 . . . . . . . . . Dispatch Records 1 | . . . . 1 . . . . . . . Transport Status 2 | . . 1 . . . . 1 . . . . Recall Reinforcements 1 | . . . . 1 . . . . . . . Hauler Manifests 3 | . . 1 . . . . 1 1 . . . Registered Components 3 | . 1 . . 1 . . 1 . . . . Zone Layout 2 | . . . . . . . . 1 1 . . Fabricator Hacks . | . . . . . . . . . . . . Repair Station Hacks 7 | . . . . 2 . . 5 . . . . Scan Component 4 | . . . . 1 . . 3 . . . . Repair 3 | . . . . 1 . . 2 . . . . Recycling Unit Hacks 4 | . . . . . . . 1 3 . . . Retrieve Matter 1 | . . . . . . . . 1 . . . Retrieve Components 3 | . . . . . . . 1 2 . . . Scanalyzer 7 | . . 1 . . . . . . 6 . . Retrieve Study 7 | . . 1 . . . . . . 6 . . Garrison Access Hacks 3 | . . . . . . . . 2 . . 1 Seal Access 3 | . . . . . . . . 2 . . 1 Unauthorized Hacks . | . . . . . . . . . . . . Terminals . | . . . . . . . . . . . . Fabricators . | . . . . . . . . . . . . Repair Stations . | . . . . . . . . . . . . Recycling Units . | . . . . . . . . . . . . Scanalyzers . | . . . . . . . . . . . . Garrison Access . | . . . . . . . . . . . . Data Cores Recovered 2 | . . . . . 1 . . 1 . . . Used 1 | . . . . . 1 . . . . . . Hacking Detections 25 | . 2 4 . 4 1 . 6 5 3 . . Full Trace Events 1 | . . . . . . . 1 . . . . Feedback Events . | . . . . . . . . . . . . Feedback Blocked . | . . . . . . . . . . . . Robot Schematics Acquired . | . . . . . . . . . . . . Robots Built . | . . . . . . . . . . . . Authchips . | . . . . . . . . . . . . Time . | . . . . . . . . . . . . Total Robot Build Rating . | . . . . . . . . . . . . Part Schematics Acquired . | . . . . . . . . . . . . Parts Built . | . . . . . . . . . . . . Authchips . | . . . . . . . . . . . . Time . | . . . . . . . . . . . . Total Part Build Rating . | . . . . . . . . . . . . Part Studies Acquired 7 | . . 1 . . . . . . 6 . . Parts Repaired 3 | . . . . 1 . . 2 . . . . Time 114 | . . . . 26 . . 88 . . . . Parts Recycled . | . . . . . . . . . . . . Recycled Matter . | . . . . . . . . . . . . Retrieved Matter . | . . . . . . . . . . . . Retrieved Components 2 | . . . . . . . . 2 . . . Parts Scanalyzed . | . . . . . . . . . . . . Part Schematics Acquired . | . . . . . . . . . . . . Parts Damaged . | . . . . . . . . . . . . Bothacking | -11 -10 -9 -9 -8 -7 -7 -7 -6 -5 -5 -5 ------------ Run | Yrd Mat Mat Min Mat Fac Was Fac Fac Fac Was Fac Used RIF Installer . | . . . . . . . . . . . . Robots Hacked . | . . . . . . . . . . . . Non-combat . | . . . . . . . . . . . . Combat . | . . . . . . . . . . . . Robot Hacks Applied . | . . . . . . . . . . . . Relay Couplers Released 2 | . . . . . . . 2 . . . . Machine Destruction 2 | . . . . . . . 2 . . . . Fabnet Peak Effective % . | . . . . . . . . . . . . Robots Rewired . | . . . . . . . . . . . . Allies Hacked . | . . . . . . . . . . . . Hacks Repelled . | . . . . . . . . . . . . Allies | -11 -10 -9 -9 -8 -7 -7 -7 -6 -5 -5 -5 -------- Run | Yrd Mat Mat Min Mat Fac Was Fac Fac Fac Was Fac Total Allies 19 | . . . . . . 19 . . . . . Largest Group 19 | . . . . . . 19 5 . . . . Highest-Rated Group 465 | . . . . . . 465 140 . . . . Highest-Rated Ally 35 | . . . . . . 35 35 . . . . Total Orders . | . . . . . . . . . . . . Ally Attacks 143 | . . . . . . 126 17 . . . . Total Damage 4446 | . . . . . . 3721 725 . . . . Kills 20 | . . . . . . 15 5 . . . . Allies Corrupted . | . . . . . . . . . . . . Allies Melted . | . . . . . . . . . . . . Intel | -11 -10 -9 -9 -8 -7 -7 -7 -6 -5 -5 -5 ------- Run | Yrd Mat Mat Min Mat Fac Was Fac Fac Fac Was Fac Active Infowar (turns) 7393 | . 195 1019 480 684 363 283 1224 1304 1009 169 663 Sensors 610 | . . . . . . . 610 . . . . IFF 663 | . . . . . . . . . . . 663 Terrain 1166 | . . . . . . . . 65 447 169 485 Structural 929 | . . . . . . . . 929 . . . Seismic 3614 | . 195 1019 456 684 363 283 614 . . . . Jamming 2473 | . . . . . . . . 1304 1009 160 . ECM 1102 | . . 1019 83 . . . . . . . . Robot Analysis Total 1 | . . . . 1 . . . . . . . Derelict Logs Recovered 1 | . . . 1 . . . . . . . . Drone Launches . | . . . . . . . . . . . . Drone Recoveries . | . . . . . . . . . . . . Exploration | -11 -10 -9 -9 -8 -7 -7 -7 -6 -5 -5 -5 ------------- Run | Yrd Mat Mat Min Mat Fac Was Fac Fac Fac Was Fac Turns Passed 8215 | 63 229 1019 504 763 363 283 1249 1304 1009 248 1181 Spaces Moved 4700 | 45 173 392 176 435 250 213 698 897 603 237 581 Core 22 | 2 . . . 2 . . . . . . 18 Treads 409 | . . 225 144 22 . . . . . . 18 Legs 733 | 43 173 167 32 . . . . . . 22 296 Wheels 3536 | . . . . 411 250 213 698 897 603 215 249 Hover . | . . . . . . . . . . . . Flight . | . . . . . . . . . . . . Fastest Speed 50 | 50 120 120 160 100 100 100 100 115 90 90 50 Average Speed 123 | 116 120 160 206 107 104 114 111 115 110 96 147 Slowest Speed 600 | 120 120 330 260 600 115 115 115 115 130 175 240 Overloaded Moves . | . . . . . . . . . . . . Propulsion Burnouts . | . . . . . . . . . . . . Robots Hopped . | . . . . . . . . . . . . Potential Cave-ins . | . . . . . . . . . . . . Cave-ins Triggered 1 | . . . . . . . . . . . 1 Exploration Rate (%) 34 | 3 33 57 53 35 5 89 14 23 17 72 12 Regions Visited 11 Branch Regions 1 Pre-discovered Areas . | . . . . . . . . . . . . Known Exits Taken 1 | . . . 1 . . . . . . . . Unknown Exits Taken 6 | 1 1 1 . 1 . . 1 1 . . . Scrap Searched 2 | . . . 2 . . . . . . . . Spaces Dug 86 | . . . . 2 . 11 20 19 15 . 19 Terrain Destroyed 352 | . . 10 35 35 1 11 109 73 49 . 29 Melee 66 | . . . . . . . 17 18 15 . 16 Projectile 73 | . . . . 19 1 . 14 19 7 . 13 AOE 213 | . . 10 35 16 . 11 78 36 27 . . Terrain Rammed . | . . . . . . . . . . . . Walls Destroyed . | . . . . . . . . . . . . Machines Disabled . | . . . . . . . . . . . . Actions | -11 -10 -9 -9 -8 -7 -7 -7 -6 -5 -5 -5 --------- Run | Yrd Mat Mat Min Mat Fac Was Fac Fac Fac Was Fac Total 6363 | 52 190 660 285 675 340 250 981 1054 850 252 774 Wait 864 | . 9 174 82 140 71 31 136 35 136 . 50 Move 4691 | 44 172 391 175 434 250 212 697 896 603 236 581 Hop . | . . . . . . . . . . . . Pick Up 109 | 2 6 8 2 24 4 1 8 18 15 1 20 Fast Attach 71 | 6 1 4 3 12 4 1 4 3 10 2 21 Attach 44 | . . 2 5 2 . . 6 8 4 6 11 Detach 8 | . . . . . . . . . 2 3 3 Swap 65 | . . 8 2 6 . 2 17 16 11 . 3 Drop 94 | . . 6 . 21 5 2 9 18 19 1 13 Fire 302 | . 2 65 16 35 6 1 75 38 33 3 28 Melee 110 | . . . . . . . 29 22 17 . 42 Ram 3 | . . . . 1 . . . . . . 2 Kick 1 | . . 1 . . . . . . . . . Crush 1 | . . 1 . . . . . . . . . Escape Stasis . | . . . . . . . . . . . . Rewire . | . . . . . . . . . . . . Trap . | . . . . . . . . . . . . Miscellaneous . | . . . . . . . . . . . . Route ------- -11/Scrapyard -10/Materials (discovered 2 exits: *Mat x2) -9/Materials -9/Mines -8/Materials -7/Factory -7/Waste -7/Factory -6/Factory -5/Factory -5/Waste -5/Factory History --------- Turn | Location | Event 19 | -11/Scrapyard | Discovered new exit (range 16) 64 | -11/Scrapyard | Entered Materials 65 | -10/Materials | Met a group of wandering Federalists 160 | -10/Materials | Discovered new exit (range 3) 276 | -10/Materials | Discovered new exit (range 14) 293 | -10/Materials | Entered another Materials area 293 | -9/Materials | Evolved 2 slots: Propulsion x1, Utility x1 314 | -9/Materials | Build established: Mutant 500 | -9/Materials | Discovered new exit (range 16) 502 | -9/Materials | Destroyed 9 combat bots 955 | -9/Materials | Core integrity fell below 50% 1248 | -9/Materials | Build established: Scavenger-Mutant 1312 | -9/Materials | Entered Mines 1313 | -9/Mines | Assembled infested the area 1394 | -9/Mines | Core integrity fell below 20% 1429 | -9/Mines | Lost 7 parts (1p2n2u2w) 1653 | -9/Mines | Build established: Mutant 1762 | -9/Mines | Received a Rocket Launcher from a helpful Derelict 1790 | -9/Mines | Identified exit to Materials 1816 | -9/Mines | Entered Materials 1816 | -8/Materials | Evolved 2 slots: Propulsion x1, Utility x1 2025 | -8/Materials | Repaired Lrg. Storage Unit 2491 | -8/Materials | Garrison activated, responded to threat 2567 | -8/Materials | Discovered new exit (range 13) 2579 | -8/Materials | Entered Factory 2579 | -7/Factory | Evolved 2 slots: Power x1, Utility x1 2942 | -7/Factory | Sucked down chute 2942 | -7/Factory | Entered Waste 3027 | -7/Waste | Warlord forces began an assault 3084 | -7/Waste | Spotted C-40 Crusher 3085 | -7/Waste | Allies destroyed C-40 Crusher 3142 | -7/Waste | Lost 9 allies 3200 | -7/Waste | Discovered new exit (range 12) 3207 | -7/Waste | Lost 3 allies 3225 | -7/Waste | Entered Factory 3225 | -7/Factory | Accompanied by 5 allies 3379 | -7/Factory | Lost 3 allies 3751 | -7/Factory | Repaired Imp. Medium Armor Plating 3797 | -7/Factory | Repaired Arm. Huge Wheel 3896 | -7/Factory | Lost 3 parts (2u1w) 4450 | -7/Factory | Discovered new exit (range 9) 4474 | -7/Factory | Entered another Factory area 4474 | -6/Factory | Evolved 2 slots: Utility x1, Weapon x1 5031 | -6/Factory | Build established: Scavenger-Mutant 5711 | -6/Factory | Discovered new exit (range 4) 5778 | -6/Factory | Entered another Factory area 5778 | -5/Factory | Evolved 2 slots: Utility x1, Weapon x1 6143 | -5/Factory | Build established: Tank 6590 | -5/Factory | Build established: Scavenger-Tank 6787 | -5/Factory | Sucked down chute 6787 | -5/Factory | Entered Waste 6798 | -5/Waste | Spotted C-40 Crusher 6859 | -5/Waste | Spotted C-40 Crusher 6861 | -5/Waste | Spotted C-40 Crusher 6862 | -5/Waste | Spotted C-40 Crusher 6870 | -5/Waste | Crushed by Compactor (0 parts destroyed, 1 dropped) 6871 | -5/Waste | Spotted C-40 Crusher 6873 | -5/Waste | Crushed by Compactor (0 parts destroyed, 1 dropped) 6886 | -5/Waste | Spotted C-40 Crusher 6927 | -5/Waste | Crushed by Compactor (1 part destroyed, 1 dropped) 6941 | -5/Waste | Crushed by Compactor (1 part destroyed, 1 dropped) 6947 | -5/Waste | Crushed by Compactor (0 parts destroyed, 2 dropped) 6972 | -5/Waste | Lost 4 parts (1n1u2w) 7014 | -5/Waste | Discovered new exit (range 11) 7035 | -5/Waste | Entered Factory 7221 | -5/Factory | Build established: Mutant 7226 | -5/Factory | Crushed by falling debris 7446 | -5/Factory | Lost 5 parts (2u3w) 7484 | -5/Factory | Core integrity fell below 50% 7964 | -5/Factory | Build established: Scavenger-Tank 8187 | -5/Factory | Garrison activated, responded to threat 8201 | -5/Factory | System corruption reached 10% 8213 | -5/Factory | Released all parts (12) 8214 | -5/Factory | Core integrity fell below 20% 8216 | -5/Factory | Destroyed by P-70 Sage with High-powered Shock Rifle Last Messages --------------- 08213_ Released IFF Parser. 08213_ Released Flexi-carbon Leg+. 08213_ Released Lrg. Storage Unit. 08213_ Released Adv. Cooling System. 08213_ Released Mic. Fission Core+. 08213_ Released Lgt. Nuclear Core. 08213_ Released Imp. Target Analyzer. 08213_ Released Wave Gun. [Achievement: Live, Flee, And Rebuild] 08213_ Slammed into P-70 Sage. 08213_ Destabilizing: System corrupted (+1). 08213_ Penetrated by Slug. 08213_ M-28 Smith repairs H-66 Slayer Lgt. Fission Core. 08213_ Critical hit (Burn: +37). 08214_ Slammed into U-05 Engineer. 08214_ Penetrated by Slug. 08215_ Critical hit (Burn: +37). 08215_ P-70 Sage resets P-70 Sage, system corruption cleaned. Map ----- +----------------------------------------------------+ | ??????????????????????????????#??# # # | | ?????????????????????? ??????????# + # | | ??????????????????????"??????????# # # | | ?????????????????????????????????# # # | | ?????????????????????????? ??????# # # | | ???????????????????????????????#?# # # | | ??????????????????#????????####### # # | | ?????????????????????????? # ##+#### | | ?????????????????????????? / ##?##### | | ???????????????????#??? ??????"?"# #??????? | | ?????????????????????????? ???""# #??????? | | ????????????????????? ????????"??# #?#?#??? | | ?????????????????? ???#???????# #????#?# | | ???????????????? [! ????????"?# ######?? | | ??????????????" [! ????? ????# #??? | | ??????????????" [! G??? ? ? # #### | | ??????????????" ""????????# | | ??????????????" ""????????# #### | | ??????????????" #?#???#?# #??? | | ????????????? " == ???????## ########### | | ????????????? " == ######### # | | ??????????? " " # """ "" | | ??????????? h + """ "" | | ?????????? u # """ R | | ???????????? hh m # "" | | ???????????????????# @ %pghu # | | ???????????????????##########!g######### !! | | ???????????????????? ????#!!=]/! #??## !! | | ?????????????????????????#"""==[ ##??# | | ??????????????? ??? ?????#""""!* #???# | | ??????????????? ???? ????#"""" #???# = | | ??????????????????? ?????#"""" #???# ! | | ?????????????????????????#"""" #???###### #### | | ????????????????? ??????##""" #?????######??? | | ?????????????????????????# ! #?????????????? | | ?????????????#? ?????????###########???????#?????# | | ??????????????????#?????????#????#???????????????? | | ????????????????????????????????????#???#????????? | | ????????????????????????????#????????????#???????? | | | | | | | | | | | | | | | | | | | | | | | +----------------------------------------------------+ Best States ------------- Heat Dissipation 71 Energy Generation 34 Energy Capacity 535 Matter Stores 425 Matter Capacity 450 Sight Range 16 Robot Scan Range 14 Terrain Scan Range 20 Terrain Scan Density 10 ECM Strength 1 Jamming Range 12 Additional Mass Support 9 EM Shielding 3 Armor Coverage 450 Resistance: KI 25 Resistance: TH 25 Resistance: EX 25 Phase Shifting 5 Evasion (%) 55 Targeting Accuracy 5 Target Analysis 6 Recoil Reduction 3 Energy Filtering 30 Particle Charging 20 Offensive Hacking 14 Defensive Hacking 10 Item Schematics ----------------- None Robot Schematics ------------------ None Fabricated ------------ Nothing Repaired ---------- Lrg. Storage Unit | 89% | -8/Materials Imp. Medium Armor Plating | 50% | -7/Factory Arm. Huge Wheel | 50% | -7/Factory Studied --------- Lgt. Treads | -9/Materials | Hacked Lgt. Fission Core | -5/Factory | Hacked Mic. Fission Core | -5/Factory | Hacked Arm. Huge Wheel | -5/Factory | Hacked Hvy. Plasma Cannon | -5/Factory | Hacked Variable Charge Gun | -5/Factory | Hacked Flexi-carbon Leg | -5/Factory | Hacked Alien Tech Used ----------------- None Achievements -------------- Below Live, Flee, And Rebuild Total Silence Challenges ------------ None Game ------ Seed DataNeutronLaser Manual? 0 Play Time 01:46:49 Cumulative 46.5 hours Start 2026.07.01 @ 01:47:14 End 2026.07.01 @ 20:27:37 Sessions 5 Manual Loads 0 Difficulty Rogue Special Mode None Game No. 88 Rogue 88 Adventurer 0 Explorer 0 Win Type - Total 1 Types 1/0/0/0/0/0/0/0/0/0 Lore% 25 Gallery% 33 Achievement% 24 Wizard Run 0 Options --------- Layout 1 ASCII 0 Keyboard 0 Movement Arrows Keybinds 0 Fullscreen 1 Font 32/SmallcapsGlow Map View 50x35 Zoom Use 0% Tactical HUD 1 Map Filters NONE Filters NONE Steam 1 RUN: 3393539f-2d58-45eb-9366-fd9ff0f7d6d9